fUSD/lending_fUSD_20241123
["ID","MTS","AMOUNT","RATE_DAILY","PERIOD"]
[343123014,1732373441395,-500.0,0.00052106,120]
[343123015,1732373441405,-500.0,0.00052106,120]
[343123016,1732373441415,-500.0,0.00052106,120]
[343123017,1732373441424,-514.61540083,0.00052106,120]
[343123018,1732373441434,-83333.83015505,0.00052106,4]
[343123019,1732373441443,-937.63961002,0.00052106,2]
[343123020,1732373441453,-751.28516159,0.00052106,2]
[343123021,1732373441463,-9050.1377522,0.00052106,2]
[343123022,1732373441472,-1885.22850276,0.00052106,30]
[343123023,1732373441487,-2458.0169933,0.00052106,30]
[343123024,1732373441497,-150.0,0.00052106,2]
[343123025,1732373441510,-151.26309373,0.00052106,3]
[343123026,1732373441521,-1020.3867888,0.00052106,120]
[343123027,1732373441531,-1000.0,0.00052106,120]
[343123028,1732373441541,-393.0041416,0.00052106,120]
[343123029,1732373441551,-49957.11692827,0.00052106,120]
[343123030,1732373441562,-150.0,0.00052211,30]
[343123031,1732373441572,-170.06948319,0.00052264,47]
[343123032,1732373441582,-1000.0,0.0005233,120]
[343123033,1732373441592,-150.0,0.00052333,30]
[343123034,1732373441603,-151.2659386,0.00052358,120]
[343123035,1732373441613,-8448.83952795,0.00052358,120]
[343123036,1732373441623,-1000.0,0.00052359,2]
[343123037,1732373441633,-1000.0,0.00052359,2]
[343123038,1732373441643,-1000.0,0.00052359,2]
[343123039,1732373441653,-1000.0,0.00052359,2]
[343123040,1732373441662,-1000.0,0.00052359,2]
[343123041,1732373441672,-1000.0,0.00052359,2]
[343123042,1732373441683,-1000.0,0.00052359,2]
[343123043,1732373441694,-1000.0,0.00052359,2]
[343123044,1732373441704,-608.0,0.00052359,2]
[343123045,1732373441714,-1000.0,0.00052359,2]
[343123046,1732373441727,-1000.0,0.00052359,2]
[343123047,1732373441738,-1000.0,0.00052359,2]
[343123048,1732373441748,-1000.0,0.00052359,2]
[343123049,1732373441763,-1000.0,0.00052359,2]
[343123050,1732373441774,-1000.0,0.00052359,2]
[343123051,1732373441784,-1000.0,0.00052359,2]
[343123052,1732373441794,-1000.0,0.00052359,2]
[343123053,1732373441804,-1000.0,0.00052359,2]
[343123054,1732373441814,-1000.0,0.00052359,2]
[343123055,1732373441825,-1000.0,0.00052359,2]
[343123056,1732373441834,-1000.0,0.00052359,2]
[343123057,1732373441844,-1000.0,0.00052359,2]
[343123058,1732373441855,-1000.0,0.00052359,2]
[343123059,1732373441865,-1000.0,0.00052359,2]
[343123060,1732373441875,-1000.0,0.00052359,2]
[343123061,1732373441885,-1000.0,0.00052359,2]
[343123062,1732373441894,-1000.0,0.00052359,2]
[343123063,1732373441905,-1000.0,0.00052359,2]
[343123064,1732373441915,-1000.0,0.00052359,2]
[343123065,1732373441924,-1000.0,0.00052359,2]
[343123066,1732373441934,-1000.0,0.00052359,2]
[343123067,1732373441944,-733.48415405,0.00052359,2]
[343123068,1732373441954,-2484.56374,0.00052359,60]
[343123069,1732373441964,-466.453519,0.00052364,2]
[343123070,1732373441975,-717.2157361,0.00052364,2]
[343123071,1732373441997,-934.8075807,0.00052364,2]
[343123072,1732373442014,-6211.1043884,0.00052364,2]
[343123073,1732373442023,-12006.598516,0.00052364,2]
[343123074,1732373442033,-8752.0,0.000524,11]
[343123075,1732373442043,-150.0,0.00052455,30]
[343123076,1732373442054,-500.0,0.000525,15]
[343123077,1732373442064,-158.45,0.00052512,120]
[343123078,1732373442075,-151.0,0.00052521,120]
[343123079,1732373442089,-150.0,0.00052576,30]
[343123080,1732373442098,-185.49,0.00052665,2]
[343123081,1732373442108,-150.0,0.00052698,30]
[343123082,1732373442119,-1393.10704128,0.000528,60]
[343123083,1732373442128,-1512.59,0.00052802,2]
[343123084,1732373442139,-150.0,0.0005282,30]
[343123085,1732373442150,-2484.56374,0.0005283,63]
[343123086,1732373442160,-1279.36752525,0.000529,15]
[343123087,1732373442170,-2443.0,0.000529,2]
[343123088,1732373442180,-150.0,0.00052942,30]
[343123089,1732373442190,-2999.99,0.00053,30]
[343123090,1732373442200,-3000.0,0.00053,30]
[343123091,1732373442210,-1030.71,0.00053,30]
[343123092,1732373442220,-800.0,0.00053,2]
[343123093,1732373442231,-783.1,0.00053018,2]
[343123094,1732373442241,-1954.0,0.0005302,15]
[343123095,1732373442253,-150.0,0.00053063,30]
[343123096,1732373442266,-269.83375,0.00053068,120]
[343123097,1732373442276,-160.33,0.00053082,120]
[343123098,1732373442286,-150.0,0.00053185,30]
[343123099,1732373442296,-150.37,0.00053213,2]
[343123100,1732373442306,-150.0,0.00053307,30]
[343123101,1732373442315,-572.278,0.0005331,120]
[343123102,1732373442324,-150.0,0.00053428,30]
[343123103,1732373442334,-150.0,0.0005355,30]
[343123104,1732373442345,-167.78,0.00053639,2]
[343123105,1732373442354,-150.0,0.00053672,30]
[343123106,1732373442365,-299.999999,0.000537,2]
[343123107,1732373442374,-5300.0,0.000537,19]
[343123108,1732373442384,-150.0,0.00053793,30]
[343123109,1732373442393,-7000.0,0.000538,19]
[343123110,1732373442403,-171.56,0.00053899,2]
[343123111,1732373442413,-4611.30055461,0.000539,2]
[343123112,1732373442423,-174.23508868,0.000539,31]
[343123113,1732373442432,-151.0,0.000539,120]
[343123114,1732373442442,-151.0,0.000539,120]
[343123115,1732373442452,-8800.0,0.000539,19]
[343123116,1732373442461,-186.25511648,0.000539,11]
[343123117,1732373442471,-22045.90174957,0.000539,2]
[343123118,1732373442481,-201.76994479,0.000539,2]
[343123119,1732373442490,-3310.94119537,0.000539,2]
[343123120,1732373442505,-165.65,0.00053902,2]
[343123121,1732373442516,-150.0,0.00053915,30]
[343123122,1732373442529,-150.5,0.0005399,30]
[343123123,1732373442539,-500.0,0.00053999,120]
[343123124,1732373442549,-50000.0,0.00054,3]
[343123125,1732373442558,-430.2437132,0.00054,2]
[343123126,1732373442568,-2598849.63145314,0.00054,120]
[343123127,1732373442577,-151.0,0.00054,120]
[343123128,1732373442587,-162.0,0.00054,120]
[343123129,1732373442597,-151.0,0.00054,3]
[343123130,1732373442608,-151.0,0.00054,120]
[343123131,1732373442618,-151.0,0.00054,120]
[343123132,1732373442627,-151.0,0.00054,120]
[343123133,1732373442638,-151.0,0.00054,120]
[343123134,1732373442647,-151.0,0.00054,120]
[343123135,1732373442657,-151.0,0.00054,120]
[343123136,1732373442667,-224.588958,0.00054,120]
[343123137,1732373442677,-151.0,0.00054,120]
[343123138,1732373442686,-151.0,0.00054,120]
[343123139,1732373442695,-151.0,0.00054,120]
[343123140,1732373442705,-151.0,0.00054,120]
[343123141,1732373442715,-151.0,0.00054,7]
[343123142,1732373442724,-151.0,0.00054,120]
[343123143,1732373442733,-151.0,0.00054,120]
[343123144,1732373442742,-150.47,0.00054,120]
[343123145,1732373442755,-150.47,0.00054,120]
[343123146,1732373442766,-150.47,0.00054,120]
[343123147,1732373442776,-150.47,0.00054,120]
[343123148,1732373442787,-150.47,0.00054,120]
[343123149,1732373442797,-150.47,0.00054,120]
[343123150,1732373442807,-150.47,0.00054,120]
[343123151,1732373442818,-150.47,0.00054,120]
[343123152,1732373442828,-150.47,0.00054,120]
[343123153,1732373442838,-150.47,0.00054,120]
[343123154,1732373442848,-150.47,0.00054,120]
[343123155,1732373442859,-150.47,0.00054,120]
[343123156,1732373442869,-151.0,0.00054,120]
[343123157,1732373442878,-150.47,0.00054,120]
[343123158,1732373442888,-150.47,0.00054,120]
[343123159,1732373442899,-150.47,0.00054,120]
[343123160,1732373442910,-151.0,0.00054,120]
[343123161,1732373442919,-150.47,0.00054,120]
[343123162,1732373442929,-150.47,0.00054,120]
[343123163,1732373442938,-150.47,0.00054,120]
[343123165,1732373442947,-150.47,0.00054,120]
[343123166,1732373442957,-150.47,0.00054,120]
[343123167,1732373442966,-150.47,0.00054,120]
[343123168,1732373442976,-150.47,0.00054,120]
[343123169,1732373442986,-150.47,0.00054,120]
[343123170,1732373442997,-150.47,0.00054,120]
[343123171,1732373443011,-150.47,0.00054,120]
[343123172,1732373443023,-150.47,0.00054,120]
[343123173,1732373443034,-150.47,0.00054,120]
[343123174,1732373443045,-150.47,0.00054,120]
[343123175,1732373443055,-150.47,0.00054,120]
[343123176,1732373443066,-150.47,0.00054,120]
[343123177,1732373443076,-150.47,0.00054,120]
[343123178,1732373443089,-150.47,0.00054,120]
[343123179,1732373443099,-150.47,0.00054,120]
[343123180,1732373443110,-150.47,0.00054,120]
[343123181,1732373443120,-150.47,0.00054,120]
[343123182,1732373443129,-150.47,0.00054,120]
[343123183,1732373443139,-150.47,0.00054,120]
[343123186,1732373443149,-150.47,0.00054,120]
[343123189,1732373443159,-150.47,0.00054,120]
[343123191,1732373443170,-150.47,0.00054,120]
[343123194,1732373443181,-150.47,0.00054,120]
[343123197,1732373443191,-150.47,0.00054,120]
[343123199,1732373443200,-150.47,0.00054,120]
[343123201,1732373443210,-150.47,0.00054,120]
[343123202,1732373443221,-150.47,0.00054,120]
[343123203,1732373443231,-150.47,0.00054,120]
[343123204,1732373443240,-150.47,0.00054,120]
[343123205,1732373443249,-150.47,0.00054,120]
[343123206,1732373443262,-150.47,0.00054,120]
[343123207,1732373443272,-150.47,0.00054,120]
[343123208,1732373443282,-150.47,0.00054,120]
[343123209,1732373443292,-150.47,0.00054,120]
[343123210,1732373443301,-243.513339,0.00054,120]
[343123211,1732373443310,-150.0,0.00054037,30]
[343123212,1732373443320,-304.14107971,0.00054041,2]
[343123213,1732373443330,-957.5,0.0005405,120]
[343123214,1732373443341,-200.0,0.0005405,95]
[343123215,1732373443350,-2484.56375,0.0005408,68]
[343123216,1732373443360,-166.58,0.0005413,2]
[343123217,1732373443369,-500.0,0.00054136,120]
[343123218,1732373443379,-150.0,0.00054159,30]
[343123219,1732373443388,-500.0,0.00054273,120]
[343123220,1732373443398,-150.0,0.0005428,30]
[343123221,1732373443408,-150.0,0.00054402,30]
[343123222,1732373443417,-500.0,0.0005441,120]
[343123223,1732373443427,-150.0,0.00054524,30]
[343123224,1732373443437,-185.49,0.00054528,2]
[343123225,1732373443447,-500.0,0.00054547,120]
[343123226,1732373443456,-178.61,0.00054561,2]
[343123227,1732373443464,-150.0,0.00054645,30]
[343123228,1732373443474,-150.47,0.0005467,120]
[343123229,1732373443484,-50699.999999,0.0005468,120]
[343123230,1732373443493,-500.0,0.00054684,120]
[343123231,1732373443505,-168.28916001,0.00054694,120]
[343123232,1732373443514,-292.89937195,0.00054767,30]
[343123233,1732373443525,-150.47,0.00054784,120]
[343123234,1732373443535,-150.47,0.00054784,120]
[343123235,1732373443545,-174.494149,0.00054794,120]
[343123236,1732373443555,-177.648009,0.00054794,120]
[343123237,1732373443564,-161.762546,0.00054794,120]
[343123238,1732373443574,-154.589909,0.00054794,120]
[343123239,1732373443584,-500.0,0.00054794,2]
[343123240,1732373443593,-500.0,0.00054794,120]
[343123241,1732373443603,-500.0,0.00054794,120]
[343123242,1732373443612,-500.0,0.00054794,120]
[343123243,1732373443622,-502.51829941,0.00054794,120]
[343123244,1732373443763,-500.0,0.00054794,120]
[343123245,1732373443773,-347.8979847,0.00054794,120]
[343123246,1732373443782,-500.0,0.00054794,120]
[343123247,1732373443792,-500.0,0.00054794,120]
[343123248,1732373443802,-500.0,0.00054794,120]
[343123249,1732373443812,-500.0,0.00054794,120]
[343123250,1732373443822,-500.0,0.00054794,120]
[343123251,1732373443831,-500.0,0.00054794,120]
[343123252,1732373443841,-500.0,0.00054794,120]
[343123253,1732373443850,-500.0,0.00054794,120]
[343123254,1732373443859,-500.0,0.00054794,120]
[343123255,1732373443869,-500.0,0.00054794,120]
[343123257,1732373443878,-500.0,0.00054794,120]
[343123258,1732373443888,-500.0,0.00054794,120]
[343123261,1732373443897,-500.0,0.00054794,120]
[343123264,1732373443907,-500.0,0.00054794,120]
[343123265,1732373443916,-500.0,0.00054794,120]
[343123266,1732373443925,-500.0,0.00054794,120]
[343123267,1732373443936,-500.0,0.00054794,120]
[343123268,1732373443945,-500.0,0.00054794,120]
[343123269,1732373443955,-500.0,0.00054794,120]
[343123270,1732373443964,-500.0,0.00054794,120]
[343123271,1732373443974,-500.0,0.00054794,120]
[343123273,1732373443984,-500.0,0.00054794,120]
[343123274,1732373443998,-500.0,0.00054794,120]
[343123276,1732373444010,-500.0,0.00054794,120]
[343123278,1732373444019,-500.0,0.00054794,120]
[343123280,1732373444029,-500.0,0.00054794,120]
[343123282,1732373444039,-500.0,0.00054794,120]
[343123284,1732373444049,-500.0,0.00054794,120]
[343123286,1732373444059,-500.0,0.00054794,120]
[343123287,1732373444068,-500.0,0.00054794,120]
[343123288,1732373444080,-500.0,0.00054794,120]
[343123289,1732373444090,-500.0,0.00054794,120]
[343123290,1732373444099,-500.0,0.00054794,120]
[343123291,1732373444108,-567.27838369,0.00054794,120]
[343123292,1732373444118,-500.0,0.00054794,120]
[343123293,1732373444128,-500.0,0.00054794,120]
[343123294,1732373444139,-551.43201837,0.00054794,120]
[343123295,1732373444148,-500.0,0.00054794,120]
[343123296,1732373444158,-500.0,0.00054794,120]
[343123297,1732373444168,-500.0,0.00054794,120]
[343123298,1732373444178,-500.0,0.00054794,120]
[343123299,1732373444188,-500.0,0.00054794,120]
[343123300,1732373444198,-500.0,0.00054794,120]
[343123301,1732373444207,-500.0,0.00054794,120]
[343123302,1732373444216,-500.0,0.00054794,120]
[343123303,1732373444225,-500.0,0.00054794,120]
[343123304,1732373444236,-500.0,0.00054794,120]
[343123305,1732373444245,-500.0,0.00054794,120]
[343123306,1732373444257,-500.0,0.00054794,120]
[343123307,1732373444267,-500.0,0.00054794,120]
[343123308,1732373444277,-500.0,0.00054794,120]
[343123309,1732373444287,-500.0,0.00054794,120]
[343123310,1732373444296,-500.0,0.00054794,120]
[343123311,1732373444307,-500.0,0.00054794,120]
[343123312,1732373444317,-500.0,0.00054794,120]
[343123313,1732373444327,-500.0,0.00054794,120]
[343123314,1732373444337,-500.0,0.00054794,120]
[343123315,1732373444347,-500.0,0.00054794,120]
[343123316,1732373444356,-500.0,0.00054794,120]
[343123317,1732373444366,-500.0,0.00054794,120]
[343123318,1732373444375,-500.0,0.00054794,120]
[343123319,1732373444385,-500.0,0.00054794,120]
[343123320,1732373444395,-500.0,0.00054794,120]
[343123321,1732373444409,-500.0,0.00054794,120]
[343123322,1732373444418,-500.0,0.00054794,120]
[343123323,1732373444427,-343.7143855,0.00054794,120]
[343123324,1732373444437,-500.0,0.00054794,120]
[343123325,1732373444447,-500.0,0.00054794,120]
[343123326,1732373444456,-500.0,0.00054794,120]
[343123327,1732373444466,-500.0,0.00054794,120]
[343123328,1732373444475,-500.0,0.00054794,120]
[343123329,1732373444484,-500.0,0.00054794,120]
[343123330,1732373444493,-500.0,0.00054794,120]
[343123331,1732373444501,-500.0,0.00054794,120]
[343123332,1732373444514,-500.0,0.00054794,120]
[343123333,1732373444524,-500.0,0.00054794,120]
[343123334,1732373444533,-500.0,0.00054794,120]
[343123335,1732373444543,-500.0,0.00054794,120]
[343123336,1732373444553,-500.0,0.00054794,120]
[343123337,1732373444562,-151.0,0.00054794,3]
[343123338,1732373444572,-151.0,0.00054794,3]
[343123339,1732373444581,-628.73399774,0.00054794,120]
[343123340,1732373444590,-500.0,0.00054794,120]
[343123341,1732373444600,-500.0,0.00054794,120]
[343123342,1732373444609,-500.0,0.00054794,120]
[343123343,1732373444617,-500.0,0.00054794,120]
[343123344,1732373444626,-500.0,0.00054794,120]
[343123345,1732373444637,-500.0,0.00054794,120]
[343123346,1732373444646,-151.0,0.00054794,120]
[343123347,1732373444655,-151.0,0.00054794,120]
[343123348,1732373444663,-293.18224102,0.00054794,120]
[343123349,1732373444672,-500.0,0.00054794,120]
[343123350,1732373444680,-573.17,0.00054794,120]
[343123351,1732373444689,-500.0,0.00054794,120]
[343123352,1732373444699,-500.0,0.00054794,120]
[343123353,1732373444706,-500.0,0.00054794,120]
[343123354,1732373444715,-500.0,0.00054794,120]
[343123355,1732373444724,-500.0,0.00054794,120]
[343123356,1732373444731,-500.0,0.00054794,120]
[343123357,1732373444742,-500.0,0.00054794,120]
[343123358,1732373444752,-500.0,0.00054794,120]
[343123359,1732373444765,-500.0,0.00054794,120]
[343123360,1732373444775,-507.69975795,0.00054794,120]
[343123361,1732373444784,-579.88908954,0.00054794,120]
[343123362,1732373444791,-500.0,0.00054794,120]
[343123363,1732373444798,-500.0,0.00054794,120]
[343123364,1732373444808,-500.0,0.00054794,120]
[343123365,1732373444818,-500.0,0.00054794,120]
[343123366,1732373444828,-165.82077107,0.00054794,120]
[343123367,1732373444838,-500.0,0.00054794,120]
[343123368,1732373444848,-500.0,0.00054794,120]
[343123369,1732373444858,-517.49337727,0.00054794,120]
[343123370,1732373444869,-500.0,0.00054794,120]
[343123371,1732373444880,-547.1896044,0.00054794,120]
[343123372,1732373444890,-513.82404275,0.00054794,120]
[343123373,1732373444901,-500.0,0.00054794,120]
[343123374,1732373444911,-500.0,0.00054794,120]
[343123375,1732373444921,-529.9,0.00054794,120]
[343123376,1732373444932,-504.50957673,0.00054794,120]
[343123377,1732373444942,-500.0,0.00054794,120]
[343123378,1732373444952,-500.0,0.00054794,120]
[343123379,1732373444962,-505.72057653,0.00054794,120]
[343123380,1732373444971,-500.0,0.00054794,120]
[343123381,1732373444981,-500.0,0.00054794,120]
[343123382,1732373444991,-500.0,0.00054794,120]
[343123383,1732373445000,-500.0,0.00054794,120]
[343123384,1732373445013,-580.64,0.00054794,120]
[343123385,1732373445024,-500.0,0.00054794,120]
[343123386,1732373445034,-500.0,0.00054794,120]
[343123387,1732373445045,-500.0,0.00054794,120]
[343123388,1732373445056,-500.0,0.00054794,120]
[343123389,1732373445066,-500.0,0.00054794,120]
[343123390,1732373445076,-500.0,0.00054794,120]
[343123391,1732373445087,-500.0,0.00054794,120]
[343123392,1732373445097,-500.0,0.00054794,120]
[343123393,1732373445107,-500.0,0.00054794,120]
[343123394,1732373445116,-500.0,0.00054794,120]
[343123395,1732373445125,-518.65646137,0.00054794,120]
[343123396,1732373445135,-636.62897651,0.00054794,120]
[343123397,1732373445145,-505.11684195,0.00054794,120]
[343123398,1732373445154,-500.0,0.00054794,120]
[343123399,1732373445164,-1022.51,0.00054794,120]
[343123400,1732373445175,-500.0,0.00054794,120]
[343123401,1732373445185,-238.04025932,0.00054794,120]
[343123402,1732373445195,-500.0,0.00054794,120]
[343123403,1732373445205,-287.82111173,0.00054794,120]
[343123404,1732373445215,-500.0,0.00054794,120]
[343123405,1732373445226,-500.0,0.00054794,120]
[343123406,1732373445236,-500.0,0.00054794,120]
[343123407,1732373445247,-500.0,0.00054794,120]
[343123408,1732373445260,-500.0,0.00054794,120]
[343123409,1732373445270,-377.64,0.00054794,120]
[343123410,1732373445280,-238.91373356,0.00054794,120]
[343123411,1732373445290,-500.0,0.00054794,120]
[343123412,1732373445299,-500.0,0.00054794,120]
[343123413,1732373445309,-500.0,0.00054794,120]
[343123414,1732373445318,-500.0,0.00054794,120]
[343123415,1732373445327,-185.1663029,0.00054794,120]
[343123416,1732373445337,-500.0,0.00054794,120]
[343123417,1732373445346,-173.26500264,0.00054794,120]
[343123418,1732373445356,-500.0,0.00054794,120]
[343123419,1732373445366,-539.11540941,0.00054794,120]
[343123420,1732373445376,-500.0,0.00054794,120]
[343123421,1732373445385,-500.0,0.00054794,120]
[343123422,1732373445395,-500.0,0.00054794,120]
[343123423,1732373445405,-500.0,0.00054794,120]
[343123424,1732373445415,-500.0,0.00054794,120]
[343123425,1732373445425,-792.82,0.00054794,120]
[343123426,1732373445435,-500.0,0.00054794,120]
[343123427,1732373445445,-500.0,0.00054794,120]
[343123428,1732373445455,-500.0,0.00054794,120]
[343123429,1732373445465,-500.0,0.00054794,120]
[343123430,1732373445475,-500.0,0.00054794,120]
[343123431,1732373445484,-500.0,0.00054794,120]
[343123432,1732373445493,-500.0,0.00054794,120]
[343123433,1732373445503,-236.00371698,0.00054794,120]
[343123434,1732373445516,-235.1992412,0.00054794,120]
[343123435,1732373445526,-500.0,0.00054794,120]
[343123436,1732373445536,-500.0,0.00054794,120]
[343123437,1732373445546,-500.0,0.00054794,120]
[343123438,1732373445555,-500.0,0.00054794,120]
[343123439,1732373445565,-500.0,0.00054794,120]
[343123440,1732373445575,-500.0,0.00054794,120]
[343123441,1732373445584,-500.0,0.00054794,120]
[343123442,1732373445594,-500.0,0.00054794,120]
[343123443,1732373445604,-500.0,0.00054794,120]
[343123444,1732373445614,-500.0,0.00054794,120]
[343123445,1732373445625,-500.0,0.00054794,120]
[343123446,1732373445635,-500.0,0.00054794,120]
[343123447,1732373445645,-500.0,0.00054794,120]
[343123448,1732373445654,-500.0,0.00054794,120]
[343123449,1732373445664,-500.0,0.00054794,120]
[343123450,1732373445674,-500.0,0.00054794,120]
[343123451,1732373445683,-500.0,0.00054794,120]
[343123452,1732373445693,-500.0,0.00054794,120]
[343123453,1732373445702,-500.0,0.00054794,120]
[343123454,1732373445712,-500.0,0.00054794,120]
[343123455,1732373445722,-500.0,0.00054794,120]
[343123456,1732373445732,-500.0,0.00054794,120]
[343123457,1732373445741,-500.0,0.00054794,120]
[343123458,1732373445750,-500.0,0.00054794,120]
[343123459,1732373445762,-402.32400604,0.00054794,120]
[343123460,1732373445772,-151.95962825,0.00054794,120]
[343123461,1732373445782,-199.43795805,0.00054794,30]
[343123462,1732373445792,-500.0,0.00054794,120]
[343123463,1732373445802,-500.0,0.00054794,120]
[343123464,1732373445812,-500.0,0.00054794,120]
[343123465,1732373445821,-500.0,0.00054794,120]
[343123466,1732373445831,-500.0,0.00054794,120]
[343123467,1732373445841,-500.0,0.00054794,120]
[343123468,1732373445851,-500.0,0.00054794,120]
[343123470,1732373445861,-647.62,0.00054794,120]
[343123472,1732373445870,-500.0,0.00054794,120]
[343123473,1732373445879,-505.36997766,0.00054794,120]
[343123474,1732373445889,-500.0,0.00054794,120]
[343123475,1732373445898,-500.0,0.00054794,120]
[343123477,1732373445908,-500.0,0.00054794,120]
[343123478,1732373445918,-500.0,0.00054794,120]
[343123480,1732373445927,-500.0,0.00054794,120]
[343123482,1732373445936,-500.0,0.00054794,120]
[343123483,1732373445946,-500.0,0.00054794,120]
[343123484,1732373445955,-320.74474258,0.00054794,120]
[343123485,1732373445965,-500.0,0.00054794,120]
[343123486,1732373445974,-500.0,0.00054794,120]
[343123488,1732373445983,-500.0,0.00054794,120]
[343123489,1732373445993,-500.0,0.00054794,120]
[343123490,1732373446008,-500.0,0.00054794,120]
[343123491,1732373446018,-500.0,0.00054794,120]
[343123492,1732373446027,-500.0,0.00054794,120]
[343123493,1732373446037,-500.0,0.00054794,120]
[343123495,1732373446047,-230.93,0.00054794,120]
[343123498,1732373446057,-500.0,0.00054794,120]
[343123500,1732373446067,-500.0,0.00054794,120]
[343123501,1732373446077,-500.0,0.00054794,120]
[343123502,1732373446087,-500.0,0.00054794,120]
[343123504,1732373446098,-377.31799215,0.00054794,120]
[343123505,1732373446108,-500.0,0.00054794,120]
[343123506,1732373446117,-500.0,0.00054794,120]
[343123507,1732373446127,-621.66,0.00054794,120]
[343123508,1732373446136,-515.77506516,0.00054794,60]
[343123509,1732373446145,-500.0,0.00054794,120]
[343123510,1732373446156,-500.0,0.00054794,120]
[343123511,1732373446280,-500.0,0.00054794,120]
[343123512,1732373446290,-151.0,0.00054794,120]
[343123513,1732373446300,-279.507224,0.00054794,120]
[343123514,1732373446310,-168.0,0.00054794,120]
[343123515,1732373446319,-500.0,0.00054794,120]
[343123516,1732373446328,-500.0,0.00054794,90]
[343123517,1732373446338,-500.0,0.00054794,120]
[343123518,1732373446347,-500.0,0.00054794,120]
[343123519,1732373446357,-500.0,0.00054794,120]
[343123520,1732373446366,-500.0,0.00054794,120]
[343123521,1732373446376,-500.0,0.00054794,120]
[343123522,1732373446385,-487.48935828,0.00054794,120]
[343123523,1732373446395,-500.0,0.00054794,120]
[343123524,1732373446404,-500.0,0.00054794,120]
[343123525,1732373446414,-500.0,0.00054794,120]
[343123526,1732373446423,-500.0,0.00054794,120]
[343123527,1732373446432,-465.87570466,0.00054794,120]
[343123528,1732373446441,-500.0,0.00054794,120]
[343123529,1732373446451,-500.0,0.00054794,120]
[343123530,1732373446460,-500.0,0.00054794,120]
[343123531,1732373446470,-295.59490086,0.00054794,120]
[343123532,1732373446479,-500.0,0.00054794,120]
[343123533,1732373446489,-500.0,0.00054794,120]
[343123534,1732373446498,-500.0,0.00054794,120]
[343123535,1732373446510,-500.0,0.00054794,7]
[343123536,1732373446519,-371.50074748,0.00054794,120]
[343123537,1732373446528,-500.0,0.00054794,120]
[343123538,1732373446538,-500.0,0.00054794,120]
[343123539,1732373446548,-500.0,0.00054794,120]
[343123540,1732373446557,-1519.02,0.00054794,120]
[343123541,1732373446567,-1519.02,0.00054794,120]
[343123542,1732373446577,-1519.02,0.00054794,120]
[343123543,1732373446587,-375.70262857,0.00054794,120]
[343123544,1732373446596,-1519.02,0.00054794,120]
[343123545,1732373446606,-854.22,0.00054794,120]
[343123546,1732373446615,-1519.02,0.00054794,120]
[343123547,1732373446625,-1519.02,0.00054794,120]
[343123548,1732373446634,-1519.02,0.00054794,120]